bitfinex/quotes_BTCUSD_20251116
["timestamp","ask_amount","ask_price","bid_price","bid_amount"]
[1763330293715,0.7858082,93859.0,93858.0,1.53994279]
[1763330294342,0.76905183,93859.0,93858.0,1.53994279]
[1763330295232,0.76905183,93859.0,93858.0,1.51425957]
[1763330295432,1.02585183,93859.0,93858.0,1.51425957]
[1763330295930,1.52585183,93859.0,93858.0,1.51425957]
[1763330297094,1.44025183,93859.0,93858.0,1.51425957]
[1763330297295,1.35465183,93859.0,93858.0,1.51425957]
[1763330299617,1.26905183,93859.0,93858.0,1.51425957]
[1763330301431,1.26905183,93859.0,93858.0,1.51325957]
[1763330304400,1.28580948,93859.0,93858.0,1.51325957]
[1763330305228,1.28580948,93859.0,93858.0,1.50041633]
[1763330305433,1.54260948,93859.0,93858.0,1.48757309]
[1763330306411,1.21960948,93859.0,93858.0,1.48757309]
[1763330306975,1.54260948,93859.0,93858.0,1.48757309]
[1763330307409,1.54260948,93859.0,93858.0,1.48731915]
[1763330308222,1.28580948,93859.0,93858.0,1.48731915]
[1763330309003,1.28580948,93859.0,93820.0,0.0041989]
[1763330309005,0.3279723,93850.0,93820.0,0.0041989]
[1763330309222,0.5057239,93838.0,93837.0,63.94908122]
[1763330309442,0.95177573,93838.0,93837.0,63.88241493]
[1763330309658,1.05177573,93838.0,93837.0,63.72874102]
[1763330309863,3.05177573,93838.0,93837.0,63.72574102]
[1763330310071,3.0318939,93838.0,93837.0,63.72474102]
[1763330310331,3.05176802,93838.0,93837.0,63.29663284]
[1763330310533,3.05176802,93838.0,93837.0,63.28175096]
[1763330310755,3.55176802,93838.0,93837.0,63.28175096]
[1763330310967,3.55176802,93838.0,93837.0,62.82751202]
[1763330311179,3.55176802,93838.0,93837.0,62.29943935]
[1763330311392,3.55476802,93838.0,93837.0,62.29943935]
[1763330312023,3.55176802,93838.0,93837.0,62.29943935]
[1763330312230,3.61012593,93838.0,93837.0,62.29943935]
[1763330312425,3.60812593,93838.0,93837.0,62.05464628]
[1763330312637,1.60812593,93838.0,93837.0,62.05464628]
[1763330312840,1.61012593,93838.0,93837.0,62.05464628]
[1763330313433,1.28412593,93838.0,93837.0,62.05464628]
[1763330313638,1.24370719,93838.0,93837.0,62.05464628]
[1763330313836,1.46670719,93838.0,93837.0,62.05464628]
[1763330314040,1.09034928,93838.0,93837.0,62.05464628]
[1763330314411,0.97525412,93838.0,93837.0,60.78459728]
[1763330314789,0.96680816,93838.0,93837.0,60.33483159]
[1763330314967,0.94804412,93838.0,93837.0,60.33483159]
[1763330315179,0.94604412,93838.0,93837.0,60.33483159]
[1763330315406,1.11824412,93838.0,93837.0,60.32198254]
[1763330315604,0.94604412,93838.0,93837.0,60.32198254]
[1763330316235,1.26904412,93838.0,93837.0,60.32198254]
[1763330316439,0.94704412,93838.0,93837.0,60.32198254]
[1763330316775,1.27004412,93838.0,93837.0,60.32198254]
[1763330317705,1.28680728,93838.0,93837.0,60.32198254]
[1763330319392,1.28680728,93838.0,93837.0,60.41994254]
[1763330319791,1.28680728,93838.0,93837.0,60.32198254]
[1763330319999,1.28680728,93838.0,93837.0,60.41994254]
[1763330320329,0.96380728,93838.0,93837.0,60.41994254]
[1763330320458,0.9556283,93838.0,93837.0,60.41994254]
[1763330320667,0.95150412,93838.0,93837.0,60.41994254]
[1763330320876,0.94903282,93838.0,93837.0,60.41994254]
[1763330321079,0.94807402,93838.0,93837.0,60.41994254]
[1763330321525,0.94807402,93838.0,93837.0,60.42094254]
[1763330321759,0.44807402,93838.0,93837.0,60.41994254]
[1763330321963,0.77107402,93838.0,93837.0,60.41994254]
[1763330322161,0.77107402,93838.0,93837.0,60.42094254]
[1763330322365,0.77107402,93838.0,93837.0,60.41994254]
[1763330322747,0.77107402,93838.0,93837.0,60.42094254]
[1763330325108,1.37107402,93838.0,93837.0,60.42056149]
[1763330325319,1.62787402,93838.0,93837.0,60.4077169]
[1763330328839,1.37107402,93838.0,93837.0,60.4077169]
[1763330329850,0.87107402,93838.0,93837.0,60.39487237]
[1763330330417,0.87107402,93838.0,93837.0,60.43270307]
[1763330330562,0.87107402,93838.0,93837.0,60.39487237]
[1763330331004,0.87101635,93838.0,93837.0,60.39487237]
[1763330331707,0.54801635,93838.0,93837.0,60.39487237]
[1763330331846,0.87101635,93838.0,93837.0,60.39487237]
[1763330332047,0.17101635,93838.0,93837.0,60.39487237]
[1763330332478,0.17101635,93838.0,93837.0,60.40637542]
[1763330333082,0.17101635,93838.0,93837.0,60.39487237]
[1763330333497,0.17082582,93838.0,93837.0,60.39487237]
[1763330335285,0.25642582,93838.0,93837.0,60.39487237]
[1763330335459,0.42762582,93838.0,93837.0,60.38202891]
[1763330335656,0.44438417,93838.0,93837.0,60.38202891]
[1763330338730,0.27318417,93838.0,93837.0,60.42249971]
[1763330339144,0.5,93843.0,93837.0,60.46591845]
[1763330339360,0.3269723,93850.0,93842.0,0.11296]
[1763330339580,0.1269723,93870.0,93860.0,0.00899999]
[1763330339785,0.1269723,93870.0,93861.0,0.14626]
[1763330339786,0.5,93865.0,93861.0,0.14626]
[1763330339998,0.5,93865.0,93862.0,0.09346]
[1763330340207,0.5,93865.0,93864.0,0.06606]
[1763330340602,0.5,93865.0,93864.0,0.15952]
[1763330341294,0.823,93865.0,93864.0,0.15952]
[1763330341497,0.823,93865.0,93864.0,0.180262]
[1763330341701,0.823,93865.0,93864.0,0.15952]
[1763330341932,0.823,93865.0,93864.0,0.16052]
[1763330342141,0.823,93865.0,93864.0,0.147679]
[1763330342787,0.83975578,93865.0,93864.0,0.147679]
[1763330343241,0.83975578,93865.0,93864.0,0.054219]
[1763330343452,0.83975578,93865.0,93864.0,0.001]
[1763330343890,0.323,93864.0,93858.0,0.0469]
[1763330344105,0.323,93849.0,93844.0,0.09346]
[1763330344339,0.01988497,93848.0,93837.0,60.28306891]
[1763330344598,0.01988497,93847.0,93837.0,60.28306891]
[1763330344849,0.323,93849.0,93843.0,0.09346]
[1763330344850,0.01988497,93846.0,93843.0,0.09346]
[1763330345052,0.323,93844.0,93843.0,0.09346]
[1763330345482,0.59968497,93844.0,93843.0,0.14667603]
[1763330345696,0.34288497,93844.0,93843.0,0.14667603]
[1763330345908,0.84288497,93844.0,93843.0,0.14667603]
[1763330347360,0.84288497,93844.0,93843.0,0.14767603]
[1763330348614,0.84288497,93844.0,93843.0,0.14667603]
[1763330349241,0.84288497,93844.0,93843.0,0.12098807]
[1763330352010,0.84288497,93844.0,93843.0,0.12198807]
[1763330352172,0.84288497,93844.0,93843.0,0.1091446]
[1763330352792,0.01988497,93844.0,93843.0,0.1091446]
[1763330355344,0.59968497,93844.0,93843.0,0.09630134]
[1763330356409,0.42848497,93844.0,93843.0,0.09630134]
[1763330356624,0.34288497,93844.0,93843.0,0.19997072]
[1763330357002,0.34288497,93844.0,93843.0,0.09630134]
[1763330358459,0.34239497,93844.0,93843.0,0.09630134]
[1763330359225,0.34239497,93844.0,93843.0,0.07061646]
[1763330362139,0.34239497,93844.0,93843.0,0.05777403]
[1763330364317,0.34239497,93844.0,93843.0,0.15441403]
[1763330364530,0.35915225,93844.0,93843.0,0.15441403]
[1763330365261,0.53035225,93844.0,93843.0,0.10170668]
[1763330367122,0.53035225,93844.0,93843.0,0.09905168]
[1763330369588,0.53035225,93844.0,93843.0,0.21175168]
[1763330371587,0.35915225,93844.0,93843.0,0.21175168]
[1763330372170,0.35915225,93844.0,93843.0,0.19890933]
[1763330375246,0.53035225,93844.0,93843.0,0.19890933]
[1763330375446,0.53035225,93844.0,93843.0,0.18606676]
[1763330375850,0.53035225,93844.0,93843.0,0.07336676]
[1763330376205,0.51359497,93844.0,93843.0,0.07336676]
[1763330376422,0.42799497,93844.0,93843.0,0.07336676]
[1763330378029,0.42799497,93844.0,93843.0,0.13339676]
[1763330379450,0.42799497,93844.0,93843.0,0.24609676]
[1763330379451,0.34239497,93844.0,93843.0,0.24609676]
[1763330379654,0.35915202,93844.0,93843.0,0.13339676]
[1763330382280,0.35915202,93844.0,93843.0,0.12055451]
[1763330382871,0.35972632,93844.0,93843.0,0.12055451]
[1763330384478,0.35972632,93844.0,93843.0,0.22422389]
[1763330384921,0.35972632,93844.0,93843.0,0.17055451]
[1763330385358,0.35972632,93844.0,93843.0,0.15771229]
[1763330385359,0.53092632,93844.0,93843.0,0.15771229]
[1763330387244,0.53092632,93844.0,93843.0,0.10771229]
[1763330389153,0.53093756,93844.0,93843.0,0.10771229]
[1763330389314,0.44533756,93844.0,93843.0,0.10771229]
[1763330389511,0.44533756,93844.0,93843.0,0.22041229]
[1763330389741,0.44533756,93844.0,93843.0,0.10771229]
[1763330391933,0.35973756,93844.0,93843.0,0.10771229]
[1763330392414,0.35973756,93844.0,93843.0,0.09486978]
[1763330392554,0.35973756,93844.0,93843.0,0.17885586]
[1763330393038,0.35973756,93844.0,93843.0,0.09486978]
[1763330395445,0.53085756,93844.0,93843.0,0.08202757]
[1763330397269,0.35973756,93844.0,93843.0,0.08202757]
[1763330397814,0.35973756,93844.0,93843.0,0.17544631]
[1763330401861,0.03673756,93844.0,93843.0,0.28814631]
[1763330402072,0.03673756,93844.0,93843.0,0.39181569]
[1763330402289,0.01998051,93844.0,93843.0,0.39181569]
[1763330402872,0.01998051,93844.0,93843.0,0.28814631]
[1763330403072,0.01998051,93844.0,93843.0,0.23814631]
[1763330404355,0.01998051,93844.0,93843.0,0.12544631]
[1763330405375,0.51410051,93844.0,93843.0,0.12544631]
[1763330405777,0.53085519,93844.0,93843.0,0.12544631]
[1763330405996,0.44529519,93844.0,93843.0,0.12544631]
[1763330408011,0.35973519,93844.0,93843.0,0.11260486]
[1763330415293,0.53085519,93844.0,93843.0,0.11260486]
[1763330415934,0.35973519,93844.0,93843.0,0.21627424]
[1763330416136,0.35973519,93844.0,93843.0,0.26627424]
[1763330416751,0.35973519,93844.0,93843.0,0.16260486]
[1763330417796,0.35973519,93844.0,93843.0,0.11260486]
[1763330418001,0.35973519,93844.0,93843.0,0.0997633]
[1763330419952,0.35973519,93844.0,93843.0,0.1171533]
[1763330423699,0.35973519,93844.0,93843.0,0.1671533]
[1763330423964,0.35973519,93844.0,93843.0,0.38352268]
[1763330424339,0.35973519,93844.0,93843.0,0.27082268]
[1763330425268,0.44529519,93844.0,93843.0,0.1671533]
[1763330425490,0.53085519,93844.0,93843.0,0.1671533]
[1763330425819,0.53085519,93844.0,93843.0,0.1171533]
[1763330426020,0.53085519,93844.0,93843.0,0.07373456]
[1763330426021,0.35973519,93844.0,93843.0,0.07373456]
[1763330426998,0.01675468,93844.0,93843.0,0.07373456]
[1763330428105,0.01675468,93844.0,93843.0,0.06089173]
[1763330430895,0.83975468,93844.0,93843.0,0.06089173]
[1763330431101,0.84075468,93844.0,93843.0,0.06089173]
[1763330435384,1.09743468,93844.0,93843.0,0.06089173]
[1763330435770,1.09743468,93844.0,93843.0,0.04350173]
[1763330435971,1.09643468,93844.0,93843.0,0.04805173]
[1763330436385,1.09743468,93844.0,93843.0,0.04805173]
[1763330437037,1.09743468,93844.0,93843.0,0.03520722]
[1763330437247,1.01187468,93844.0,93843.0,0.03065722]
[1763330437453,0.92631468,93844.0,93843.0,0.03065722]
[1763330438082,0.92631468,93844.0,93843.0,0.0178127]
[1763330439476,0.84075468,93844.0,93843.0,0.0178127]
[1763330439681,0.84075468,93844.0,93843.0,0.12148208]
[1763330439889,0.84075468,93844.0,93843.0,0.0178127]
[1763330440416,0.83975468,93844.0,93843.0,0.0178127]
[1763330441705,0.84075468,93844.0,93843.0,0.0178127]
[1763330441874,0.34075468,93844.0,93843.0,0.0178127]
[1763330442078,0.33975468,93844.0,93843.0,0.0178127]
[1763330445555,0.51095468,93844.0,93843.0,0.0178127]
[1763330447957,0.33975468,93844.0,93843.0,0.0678127]
[1763330448153,0.33975468,93844.0,93843.0,0.05496992]
[1763330448554,0.33975468,93844.0,93843.0,0.09838866]
[1763330448958,0.01675468,93844.0,93843.0,0.09838866]
[1763330449726,0.323,93849.0,93847.0,0.04341874]
[1763330450594,0.323,93859.0,93850.0,0.00899999]
[1763330451778,0.324,93859.0,93850.0,0.00899999]
[1763330452738,0.323,93856.0,93850.0,0.00899999]
[1763330453258,0.01675584,93855.0,93850.0,0.00899999]
[1763330453835,0.01675584,93855.0,93842.0,0.0469]
[1763330453836,0.323,93849.0,93842.0,0.0469]
[1763330454798,0.323,93849.0,93842.0,0.03405688]
[1763330455223,0.08556,93848.0,93842.0,0.03405688]
[1763330455430,0.99412,93843.0,93842.0,0.03405688]
[1763330456592,0.90856,93843.0,93842.0,0.03405688]
[1763330457596,0.90956,93843.0,93842.0,0.03405688]
[1763330458135,0.90956,93843.0,93842.0,0.02121354]
[1763330459215,0.824,93843.0,93842.0,0.02121354]
[1763330460080,0.823,93843.0,93842.0,0.02121354]
[1763330460474,0.824,93843.0,93842.0,0.02121354]
[1763330460902,0.823,93843.0,93842.0,0.02121354]
[1763330461021,0.84394225,93843.0,93842.0,0.02121354]
[1763330462280,0.90681225,93843.0,93820.0,0.0041989]
[1763330462495,0.06287,93838.0,93837.0,60.25737543]
[1763330462711,0.08281225,93838.0,93837.0,60.08203543]
[1763330462923,0.53924099,93838.0,93837.0,60.08112543]
[1763330463128,0.63924099,93838.0,93837.0,60.08089269]
[1763330463753,1.13924099,93838.0,93837.0,60.08089269]
[1763330464180,1.14124099,93838.0,93837.0,60.08089269]
[1763330464596,1.14124099,93838.0,93837.0,60.06804093]
[1763330465335,1.39804099,93838.0,93837.0,60.06804093]
[1763330465540,1.39604099,93838.0,93837.0,60.06804093]
[1763330465730,1.31044099,93838.0,93837.0,60.06804093]
[1763330466113,1.31344099,93838.0,93837.0,60.06804093]
[1763330466316,1.31044099,93838.0,93837.0,60.06804093]
[1763330466719,1.31344099,93838.0,93837.0,60.06804093]
[1763330466928,1.75647705,93838.0,93837.0,60.06804093]
[1763330467582,1.58527705,93838.0,93837.0,60.06804093]
[1763330467793,3.58527705,93838.0,93837.0,58.66804093]
[1763330468205,3.58527705,93838.0,93837.0,58.65518748]
[1763330468409,3.58227705,93838.0,93837.0,58.65518748]
[1763330468816,3.58527705,93838.0,93837.0,58.65518748]
[1763330469157,3.58227705,93838.0,93837.0,58.65518748]
[1763330469414,3.58227705,93838.0,93837.0,58.54923326]
[1763330469636,3.58527705,93838.0,93837.0,57.9916435]
[1763330469875,3.58527705,93838.0,93837.0,57.9189548]
[1763330470979,3.58527705,93838.0,93837.0,57.90413015]
[1763330471401,3.58227705,93838.0,93837.0,57.90413015]
[1763330471819,3.58627705,93838.0,93837.0,57.90413015]
[1763330472028,3.58627705,93838.0,93837.0,57.90300072]
[1763330472243,3.58227705,93838.0,93837.0,57.77892517]
[1763330472456,3.58627705,93838.0,93837.0,57.77892517]
[1763330474169,3.58627705,93838.0,93837.0,57.68056012]
[1763330474381,3.58627705,93838.0,93837.0,57.58059562]
[1763330474594,3.58627705,93838.0,93837.0,57.4636294]
[1763330474803,3.58627705,93838.0,93837.0,57.43151242]
[1763330475004,3.58627705,93838.0,93837.0,57.33154792]
[1763330475387,3.84319705,93838.0,93837.0,57.18027327]
[1763330475514,3.75755705,93838.0,93837.0,57.14815629]
[1763330475719,3.75755705,93838.0,93837.0,57.11603931]
[1763330476782,3.75755705,93838.0,93837.0,55.2729297]
[1763330476996,3.75755705,93838.0,93837.0,54.28453444]
[1763330477198,3.75755705,93838.0,93837.0,53.42822066]
[1763330477562,3.58627705,93838.0,93837.0,53.42822066]
[1763330477770,3.58627705,93838.0,93837.0,52.21321699]
[1763330477909,3.58627705,93838.0,93837.0,51.99364078]
[1763330478118,3.58627705,93838.0,93837.0,51.44691762]
[1763330479121,3.83357705,93838.0,93837.0,51.44691762]
[1763330479325,1.26327705,93838.0,93837.0,51.44691762]
[1763330479734,3.58627705,93838.0,93837.0,51.44691762]
[1763330480535,3.58227705,93838.0,93837.0,51.44691762]
[1763330480740,3.58527705,93838.0,93837.0,51.44691762]
[1763330480948,3.59670769,93838.0,93837.0,51.44491762]
[1763330481147,3.59670769,93838.0,93837.0,51.44191762]
[1763330481346,3.59670769,93838.0,93837.0,51.41391762]
[1763330481551,3.59670769,93838.0,93837.0,51.41091762]
[1763330481552,3.59370769,93838.0,93837.0,51.41091762]
[1763330481762,3.59670769,93838.0,93837.0,51.40891762]
[1763330481978,3.59670769,93838.0,93837.0,50.84989597]
[1763330482199,3.59370769,93838.0,93837.0,50.72339028]
[1763330482405,3.59370769,93838.0,93837.0,50.66613991]
[1763330482541,3.59370769,93838.0,93837.0,50.23413991]
[1763330482748,3.59370769,93838.0,93837.0,50.23113991]
[1763330482947,3.6470656,93838.0,93837.0,49.82075375]
[1763330483165,3.59370769,93838.0,93837.0,49.6070939]
[1763330483580,3.59770769,93838.0,93837.0,49.6070939]
[1763330484022,3.59370769,93838.0,93837.0,49.58790073]
[1763330484245,3.59370769,93838.0,93837.0,48.44016496]
[1763330484491,3.84500769,93838.0,93837.0,47.80604586]
[1763330484722,3.84500769,93838.0,93837.0,47.36765915]
[1763330484951,3.84100769,93838.0,93837.0,47.11477533]
[1763330485185,3.84500769,93838.0,93837.0,45.62253472]
[1763330485424,1.89637908,93838.0,93837.0,39.81306206]
[1763330485658,2.94671767,93838.0,93837.0,35.57720028]
[1763330485882,2.94671767,93838.0,93837.0,33.89684831]
[1763330486091,2.94671767,93838.0,93837.0,31.77221074]
[1763330486300,2.94671767,93838.0,93837.0,31.54882613]
[1763330486511,2.94671767,93838.0,93837.0,29.92870466]
[1763330486512,2.94271767,93838.0,93837.0,29.92870466]
[1763330486759,2.94271767,93838.0,93837.0,27.91530151]
[1763330486961,4.93095161,93838.0,93837.0,27.91068368]
[1763330487166,4.93095161,93838.0,93837.0,27.90432165]
[1763330487403,2.68365161,93838.0,93837.0,22.32633209]
[1763330487541,2.68365161,93838.0,93837.0,17.81386526]
[1763330487916,2.67865161,93838.0,93837.0,17.36151436]
[1763330488118,3.72865161,93838.0,93837.0,16.3938948]
[1763330488342,3.72865161,93838.0,93837.0,14.15446651]
[1763330488343,3.03222097,93838.0,93837.0,14.15446651]
[1763330488569,3.03222097,93838.0,93837.0,10.65411784]
[1763330488780,2.68362071,93838.0,93837.0,10.37568536]
[1763330489000,2.68362071,93838.0,93837.0,8.36855482]
[1763330489210,2.68362071,93838.0,93837.0,7.05592708]
[1763330489437,2.93092071,93838.0,93837.0,4.34545056]
[1763330489636,2.93092071,93838.0,93837.0,2.29370921]
[1763330489637,2.92592071,93838.0,93837.0,2.29370921]
[1763330489839,2.93092071,93838.0,93837.0,1.22261417]
[1763330490049,2.93092071,93838.0,93837.0,1.16469145]
[1763330490253,2.74641131,93838.0,93820.0,0.0041989]
[1763330490461,0.06387,93797.0,93796.0,67.66750923]
[1763330490665,5.14631086,93797.0,93796.0,67.4926726]
[1763330490833,5.30118086,93797.0,93796.0,67.46049377]
[1763330491042,5.40118086,93797.0,93796.0,67.46153429]
[1763330491216,5.40118086,93797.0,93796.0,67.42935546]
[1763330491420,5.4445996,93797.0,93796.0,67.16190114]
[1763330491623,5.44504785,93797.0,93796.0,67.12015233]
[1763330492051,3.57862911,93797.0,93796.0,67.10776133]
[1763330492254,3.33132911,93797.0,93796.0,67.0515825]
[1763330492470,3.33132911,93797.0,93796.0,66.94467737]
[1763330492659,5.33132911,93797.0,93796.0,66.94467737]
[1763330493099,5.37474785,93797.0,93796.0,66.94467737]
[1763330493550,5.33632911,93797.0,93796.0,66.32330947]
[1763330493989,5.69774785,93797.0,93796.0,65.97965388]
[1763330494423,5.70274785,93797.0,93796.0,65.94748568]
[1763330494647,5.70274785,93797.0,93796.0,65.64499247]
[1763330495283,5.78846785,93797.0,93796.0,65.64499247]
[1763330495492,5.9399656,93797.0,93796.0,65.54499247]
[1763330495703,5.72010686,93797.0,93796.0,65.54499247]
[1763330495931,5.63438686,93797.0,93796.0,65.54499247]
[1763330496153,5.63938686,93797.0,93796.0,65.54499247]
[1763330496364,5.6828056,93797.0,93796.0,65.52099247]
[1763330496776,5.6778056,93797.0,93796.0,65.52099247]
[1763330496981,5.6828056,93797.0,93796.0,65.52099247]
[1763330497203,5.6828056,93797.0,93796.0,65.52074768]
[1763330497430,5.6778056,93797.0,93796.0,65.49730984]
[1763330497649,5.63438686,93797.0,93796.0,65.49730984]
[1763330497855,5.31138686,93797.0,93796.0,65.49730984]
[1763330498067,3.31138686,93797.0,93796.0,65.47157091]
[1763330498280,3.31138686,93797.0,93796.0,65.47017724]
[1763330498728,3.31638686,93797.0,93796.0,65.47017724]
[1763330499391,3.63438686,93797.0,93796.0,65.47017724]
[1763330499603,3.31638686,93797.0,93796.0,65.47017724]
[1763330499871,1.21422825,93797.0,93796.0,65.47017724]
[1763330500087,1.20922825,93797.0,93796.0,65.46232653]
[1763330500472,1.21322825,93797.0,93796.0,65.46232653]
[1763330501367,1.20528114,93797.0,93796.0,65.46232653]
[1763330501986,1.20128114,93797.0,93796.0,65.46232653]
[1763330502166,1.20428114,93797.0,93796.0,65.46232653]
[1763330502373,1.52728114,93797.0,93796.0,65.46232653]
[1763330502933,1.57069988,93797.0,93796.0,65.46232653]
[1763330503135,2.6225199,93797.0,93796.0,65.46232653]
[1763330503359,2.63930619,93797.0,93796.0,65.45630695]
[1763330504444,2.63930619,93797.0,93796.0,65.16679784]
[1763330504648,2.63630619,93797.0,93796.0,65.15393078]
[1763330504859,2.63630619,93797.0,93796.0,65.13393435]
[1763330505071,2.64030619,93797.0,93796.0,65.13393435]
[1763330505290,2.89746619,93797.0,93796.0,65.13393435]
[1763330505503,2.89346619,93797.0,93796.0,65.13393435]
[1763330505711,2.89846619,93797.0,93796.0,65.13393435]
[1763330505928,2.89846619,93797.0,93796.0,65.10819583]
[1763330506134,4.81274619,93797.0,93796.0,65.10819583]
[1763330506345,4.64130619,93797.0,93796.0,64.56824845]
[1763330506567,4.64130619,93797.0,93796.0,64.35312873]
[1763330507194,4.64130619,93797.0,93796.0,63.87098023]
[1763330507418,4.64130619,93797.0,93796.0,63.58283188]
[1763330507863,4.65256815,93797.0,93796.0,63.58283188]
[1763330508069,4.64756815,93797.0,93796.0,63.58283188]
[1763330508283,4.89486815,93797.0,93796.0,62.13316891]
[1763330508491,4.89986815,93797.0,93796.0,61.88250545]
[1763330508739,4.88860619,93797.0,93796.0,61.8217103]
[1763330508956,4.88860619,93797.0,93796.0,61.59045443]
[1763330508957,4.88360619,93797.0,93796.0,61.59045443]
[1763330509185,4.88360619,93797.0,93796.0,61.49045443]
[1763330509409,4.88860619,93797.0,93796.0,61.49030107]
[1763330509624,4.89981073,93797.0,93796.0,61.48528606]
[1763330510688,4.89981073,93797.0,93796.0,60.94357798]
[1763330511324,4.89481073,93797.0,93796.0,60.94357798]
[1763330511566,4.89981073,93797.0,93796.0,60.94357798]
[1763330511996,4.88981073,93797.0,93796.0,60.94357798]
[1763330512404,4.57181073,93797.0,93796.0,60.94357798]
[1763330512834,4.88981073,93797.0,93796.0,60.84161348]
[1763330513042,4.89481073,93797.0,93796.0,60.74024841]
[1763330513246,4.89481073,93797.0,93796.0,60.34776289]
[1763330513451,4.89481073,93797.0,93796.0,60.24383839]
[1763330513660,4.89481073,93797.0,93796.0,60.14187389]
[1763330513877,4.64751073,93797.0,93796.0,60.09298198]
[1763330514094,4.63072444,93797.0,93796.0,59.99005748]
[1763330514306,4.63072444,93797.0,93796.0,59.84648489]
[1763330514518,4.63072444,93797.0,93796.0,59.84248489]
[1763330514729,4.63072444,93797.0,93796.0,59.72665102]
[1763330514935,4.63072444,93797.0,93796.0,59.64447914]
[1763330515201,2.5873057,93797.0,93796.0,59.55587748]
[1763330515424,2.66186116,93797.0,93796.0,59.55087748]
[1763330515630,2.25310116,93797.0,93796.0,59.54687748]
[1763330515840,2.25310116,93797.0,93796.0,59.54287748]
[1763330516052,2.24810116,93797.0,93796.0,59.13356293]
[1763330516285,2.24810116,93797.0,93796.0,59.04396121]
[1763330516508,2.6195199,93797.0,93796.0,58.63311661]
[1763330516733,2.57610116,93797.0,93796.0,58.62911661]
[1763330516943,2.57610116,93797.0,93796.0,58.60592343]
[1763330517146,2.6195199,93797.0,93796.0,58.60292343]
[1763330517361,2.63630643,93797.0,93796.0,58.51336397]
[1763330517576,2.6474091,93797.0,93796.0,58.42376231]
[1763330517804,2.6474091,93797.0,93796.0,58.41976231]
[1763330518016,2.6474091,93797.0,93796.0,58.41676231]
[1763330518218,2.6474091,93797.0,93796.0,58.30120221]
[1763330518427,2.70124544,93797.0,93796.0,58.21260055]
[1763330518655,2.70124544,93797.0,93796.0,58.03739723]
[1763330518867,2.70124544,93797.0,93796.0,56.91713883]
[1763330519073,2.6474091,93797.0,93796.0,56.60562078]
[1763330519296,2.6474091,93797.0,93796.0,56.52006132]
[1763330519502,2.70124544,93797.0,93796.0,56.52006132]
[1763330519917,2.6578267,93797.0,93796.0,56.52006132]
[1763330520124,2.60399036,93797.0,93796.0,56.52006132]
[1763330520362,2.6474091,93797.0,93796.0,55.66295744]
[1763330520634,2.6474091,93797.0,93796.0,54.80585356]
[1763330520878,1.59558908,93797.0,93796.0,54.70588906]
[1763330521087,1.57880255,93797.0,93796.0,54.70588906]
[1763330521308,1.25580255,93797.0,93796.0,54.60592456]
[1763330521522,1.21238381,93797.0,93796.0,54.60592456]
[1763330521944,1.57880255,93797.0,93796.0,54.58673139]
[1763330522163,1.57380255,93797.0,93796.0,54.58673139]
[1763330522387,1.21238381,93797.0,93796.0,54.58673139]
[1763330522813,1.53538381,93797.0,93796.0,54.58673139]
[1763330523028,1.57880255,93797.0,93796.0,54.58633153]
[1763330523655,1.57380255,93797.0,93796.0,54.58633153]
[1763330524072,1.57880255,93797.0,93796.0,54.58633153]
[1763330524484,1.57380255,93797.0,93796.0,54.58633153]
[1763330524693,1.57380255,93797.0,93796.0,54.57346631]
[1763330524908,1.63263889,93797.0,93796.0,54.57346631]
[1763330525118,1.63263889,93797.0,93796.0,53.86646631]
[1763330525328,1.88491889,93797.0,93796.0,53.65436276]
[1763330525557,1.88491889,93797.0,93796.0,53.12436276]
[1763330525558,1.63263889,93797.0,93796.0,53.12436276]
[1763330525775,1.57880255,93797.0,93796.0,52.72036276]
[1763330526200,1.57880255,93797.0,93796.0,51.81136276]
[1763330526412,1.57880255,93797.0,93796.0,51.00336276]
[1763330526624,1.57880255,93797.0,93796.0,50.19536276]
[1763330526832,1.57380255,93797.0,93796.0,49.23502422]
[1763330527041,1.57880255,93797.0,93796.0,49.23502422]
[1763330527273,1.57880255,93797.0,93796.0,49.13402422]
[1763330527478,1.57380255,93797.0,93796.0,49.13402422]
[1763330527726,1.57380255,93797.0,93796.0,49.05405236]
[1763330527897,1.57880255,93797.0,93796.0,49.05405236]
[1763330528102,1.57880255,93797.0,93796.0,48.9899319]
[1763330528519,1.57880255,93797.0,93796.0,48.8899674]
[1763330529119,1.57880255,93797.0,93796.0,48.7889674]
[1763330529921,1.57380255,93797.0,93796.0,48.7889674]
[1763330530402,1.57880255,93797.0,93796.0,48.7889674]
[1763330530785,1.57380255,93797.0,93796.0,48.7889674]
[1763330531100,1.57880255,93797.0,93796.0,48.7889674]
[1763330531534,1.57880255,93797.0,93796.0,47.65652236]
[1763330531688,1.57880255,93797.0,93796.0,47.55552236]
[1763330532010,1.57880255,93797.0,93796.0,47.45452236]
[1763330532271,3.57880255,93797.0,93796.0,47.45452236]
[1763330532443,3.57880255,93797.0,93796.0,44.70314192]
[1763330532651,3.57880255,93797.0,93796.0,44.19814192]
[1763330532865,1.53538381,93797.0,93796.0,41.67314192]
[1763330533082,1.20128114,93797.0,93796.0,37.22914192]
[1763330533288,1.19628114,93797.0,93796.0,36.21914192]
[1763330533461,1.19628114,93797.0,93796.0,35.81514192]
[1763330533671,1.24469988,93797.0,93796.0,35.81514192]
[1763330533872,1.20128114,93797.0,93796.0,35.81514192]
[1763330534073,1.51928114,93797.0,93796.0,35.81514192]
[1763330534252,1.56269988,93797.0,93796.0,35.81514192]
[1763330534458,1.23969988,93797.0,93796.0,35.81514192]
[1763330534657,1.25954037,93797.0,93796.0,35.80227535]
[1763330534874,1.05155874,93797.0,93796.0,35.80227535]
[1763330535270,1.36643874,93797.0,93796.0,35.80227535]
[1763330535473,1.19491874,93797.0,93796.0,35.80227535]
[1763330535679,1.56133748,93797.0,93796.0,35.80227535]
[1763330536081,1.55633748,93797.0,93796.0,35.80227535]
[1763330536283,1.55633748,93797.0,93796.0,35.77654209]
[1763330536494,1.56133748,93797.0,93796.0,35.77654209]
[1763330536692,1.54149699,93797.0,93796.0,35.77654209]
[1763330536902,1.53649699,93797.0,93796.0,35.77654209]
[1763330537287,1.54149699,93797.0,93796.0,35.77654209]
[1763330537604,1.07513699,93797.0,93796.0,35.77654209]
[1763330539073,1.07013699,93797.0,93796.0,35.77654209]
[1763330539681,1.07513699,93797.0,93796.0,35.77654209]
[1763330539884,1.09499911,93797.0,93796.0,35.76367746]
[1763330541952,1.10058285,93797.0,93796.0,35.76367746]
[1763330542213,1.14643285,93797.0,93796.0,35.76367746]
[1763330542411,1.22929285,93797.0,93796.0,35.76367746]
[1763330542713,1.24607811,93797.0,93796.0,35.76367746]
[1763330543424,3.24607811,93797.0,93796.0,35.76367746]
[1763330543643,3.24607811,93797.0,93796.0,34.00808234]
[1763330543856,3.24607811,93797.0,93796.0,31.88708234]
[1763330544291,3.24607811,93797.0,93796.0,31.76034925]
[1763330544502,3.56907811,93797.0,93796.0,31.72904585]
[1763330544723,3.56907811,93797.0,93796.0,31.71617821]
[1763330545169,3.56407811,93797.0,93796.0,31.71617821]
[1763330545399,3.82123811,93797.0,93796.0,31.71617821]
[1763330545666,3.82623811,93797.0,93796.0,31.71617821]